[Event "Late-Titled-Tuesday-Blitz-October-10-2023"]
[Site "Chess.com"]
[Date "2023.10.10"]
[Round "6"]
[White "GMBenjaminBok"]
[Black "frederiksvane"]
[Result "1-0"]
[WhiteElo "3022"]
[BlackElo "2905"]
[TimeControl "180+1"]
[EndTime "15:02:38 PDT"]
[Termination "GMBenjaminBok won on time"]

1. d4 {[%clk 0:03:00.9]} 1... Nf6 {[%clk 0:02:58.4]} 2. c4 {[%clk 0:03:01.2]}
2... e6 {[%clk 0:02:58.4]} 3. Nc3 {[%clk 0:03:01.8]} 3... Bb4 {[%clk 0:02:58.6]}
4. Qc2 {[%clk 0:03:02.3]} 4... O-O {[%clk 0:02:58.2]} 5. a3 {[%clk 0:03:02.9]}
5... Bxc3+ {[%clk 0:02:58.3]} 6. Qxc3 {[%clk 0:03:03.8]} 6... d5 {[%clk
0:02:58.9]} 7. Bg5 {[%clk 0:03:04.3]} 7... h6 {[%clk 0:02:59.3]} 8. Bxf6 {[%clk
0:03:04.4]} 8... Qxf6 {[%clk 0:03:00.2]} 9. Nf3 {[%clk 0:03:05]} 9... dxc4
{[%clk 0:02:59.6]} 10. Qxc4 {[%clk 0:03:05.9]} 10... Nc6 {[%clk 0:03:00.2]} 11.
Qc3 {[%clk 0:03:06.5]} 11... Re8 {[%clk 0:03:00.2]} 12. Rd1 {[%clk 0:03:07.1]}
12... e5 {[%clk 0:02:53.4]} 13. d5 {[%clk 0:03:07.6]} 13... Nb8 {[%clk
0:02:45.2]} 14. e3 {[%clk 0:03:07.7]} 14... Bg4 {[%clk 0:02:40.2]} 15. Be2
{[%clk 0:03:07.3]} 15... Nd7 {[%clk 0:02:40.1]} 16. O-O {[%clk 0:03:06]} 16...
Qd6 {[%clk 0:02:29.6]} 17. h3 {[%clk 0:02:33.6]} 17... Bh5 {[%clk 0:02:27.6]}
18. e4 {[%clk 0:02:00.7]} 18... a6 {[%clk 0:02:00.5]} 19. Rfe1 {[%clk
0:01:48.7]} 19... Rac8 {[%clk 0:02:00.1]} 20. Nd2 {[%clk 0:01:46.7]} 20... Bxe2
{[%clk 0:01:58.9]} 21. Rxe2 {[%clk 0:01:47.6]} 21... b5 {[%clk 0:01:49]} 22. Rc1
{[%clk 0:01:21.8]} 22... f5 {[%clk 0:00:28.5]} 23. Qc6 {[%clk 0:00:49.3]} 23...
Nf6 {[%clk 0:00:21.9]} 24. exf5 {[%clk 0:00:44.3]} 24... Nxd5 {[%clk 0:00:18.5]}
25. Ne4 {[%clk 0:00:43.9]} 25... Qxc6 {[%clk 0:00:10.4]} 26. Rxc6 {[%clk
0:00:44.8]} 26... Ne7 {[%clk 0:00:11.1]} 27. Rxa6 {[%clk 0:00:39.1]} 27... Nxf5
{[%clk 0:00:11.5]} 28. Rc2 {[%clk 0:00:38.9]} 28... Nd4 {[%clk 0:00:11.3]} 29.
Rc5 {[%clk 0:00:37.2]} 29... Re7 {[%clk 0:00:05.5]} 30. Ra7 {[%clk 0:00:26.9]}
30... Rd7 {[%clk 0:00:04.5]} 31. Nc3 {[%clk 0:00:23.9]} 31... Kf7 {[%clk
0:00:01.3]} 32. Nxb5 {[%clk 0:00:19.8]} 32... Nxb5 {[%clk 0:00:02.2]} 33. Rxb5
{[%clk 0:00:20.7]} 33... Rd1+ {[%clk 0:00:02.6]} 34. Kh2 {[%clk 0:00:21]} 34...
Rd2 {[%clk 0:00:03.5]} 35. f3 {[%clk 0:00:11.8]} 35... Ke6 {[%clk 0:00:03.8]}
36. Ra6+ {[%clk 0:00:09.7]} 36... c6 {[%clk 0:00:03.6]} 37. Rb7 {[%clk
0:00:09.9]} 37... g5 {[%clk 0:00:02.3]} 38. Raa7 {[%clk 0:00:06.7]} 1-0

[Event "Late-Titled-Tuesday-Blitz-October-10-2023"]
[Site "Chess.com"]
[Date "2023.10.10"]
[Round "6"]
[White "lamomiajunior"]
[Black "Harsha_Bharathakoti"]
[Result "1/2-1/2"]
[WhiteElo "2742"]
[BlackElo "2901"]
[TimeControl "180+1"]
[EndTime "15:02:38 PDT"]
[Termination "Game drawn - insufficient material"]

1. d4 {[%clk 0:03:00.9]} 1... Nf6 {[%clk 0:02:59.2]} 2. c4 {[%clk 0:03:01.6]}
2... g6 {[%clk 0:02:59.2]} 3. Nc3 {[%clk 0:03:02.2]} 3... d5 {[%clk 0:02:59.3]}
4. Nf3 {[%clk 0:03:02.4]} 4... Bg7 {[%clk 0:02:59.1]} 5. h4 {[%clk 0:03:03.1]}
5... c6 {[%clk 0:02:57.8]} 6. cxd5 {[%clk 0:03:03.2]} 6... cxd5 {[%clk 0:02:58]}
7. Bf4 {[%clk 0:03:04]} 7... Nc6 {[%clk 0:02:57.7]} 8. e3 {[%clk 0:03:04.6]}
8... O-O {[%clk 0:02:55.5]} 9. Qb3 {[%clk 0:03:05.3]} 9... Na5 {[%clk
0:02:55.1]} 10. Qa3 {[%clk 0:03:05.6]} 10... Nc6 {[%clk 0:02:33.6]} 11. Ne5
{[%clk 0:03:03.9]} 11... Nh5 {[%clk 0:02:14.8]} 12. Nxc6 {[%clk 0:02:38.6]}
12... bxc6 {[%clk 0:02:15.7]} 13. Bh2 {[%clk 0:02:39.2]} 13... e6 {[%clk
0:02:01.4]} 14. Bd6 {[%clk 0:02:28.5]} 14... Re8 {[%clk 0:02:00.1]} 15. Be2
{[%clk 0:02:28.9]} 15... e5 {[%clk 0:01:51.9]} 16. dxe5 {[%clk 0:02:27.7]} 16...
Bxe5 {[%clk 0:01:51.7]} 17. Bxe5 {[%clk 0:02:27.8]} 17... Rxe5 {[%clk
0:01:52.6]} 18. g4 {[%clk 0:02:27.5]} 18... Nf6 {[%clk 0:01:52.1]} 19. g5 {[%clk
0:02:28.1]} 19... Ne4 {[%clk 0:01:40.1]} 20. Nxe4 {[%clk 0:02:22.2]} 20... Rxe4
{[%clk 0:01:41]} 21. Rc1 {[%clk 0:02:22.8]} 21... Bd7 {[%clk 0:01:39.6]} 22. Bd3
{[%clk 0:02:10.9]} 22... Re5 {[%clk 0:01:22.6]} 23. Qc3 {[%clk 0:02:00.5]} 23...
Qe7 {[%clk 0:01:18.1]} 24. Qd4 {[%clk 0:01:56.5]} 24... a5 {[%clk 0:01:15.8]}
25. Kd2 {[%clk 0:01:54.5]} 25... Rb8 {[%clk 0:01:14.9]} 26. a3 {[%clk
0:01:53.2]} 26... Bf5 {[%clk 0:00:36.1]} 27. f4 {[%clk 0:01:46.1]} 27... Bxd3
{[%clk 0:00:36.4]} 28. Qxe5 {[%clk 0:01:41.6]} 28... Qxe5 {[%clk 0:00:36.7]} 29.
fxe5 {[%clk 0:01:42.5]} 29... Be4 {[%clk 0:00:34.7]} 30. Rhd1 {[%clk 0:01:33.8]}
30... Rxb2+ {[%clk 0:00:34.7]} 31. Ke1 {[%clk 0:01:34.4]} 31... Rb3 {[%clk
0:00:26]} 32. Rxc6 {[%clk 0:01:31.5]} 32... Rxe3+ {[%clk 0:00:25.4]} 33. Kf2
{[%clk 0:01:32.1]} 33... Rf3+ {[%clk 0:00:24.9]} 34. Ke2 {[%clk 0:01:31.3]}
34... Rxa3 {[%clk 0:00:24.6]} 35. Rf6 {[%clk 0:01:26]} 35... a4 {[%clk
0:00:09.8]} 36. Rc1 {[%clk 0:01:23.3]} 36... Bd3+ {[%clk 0:00:09.6]} 37. Kd2
{[%clk 0:01:23.2]} 37... Bc4 {[%clk 0:00:10.5]} 38. Rb1 {[%clk 0:01:22.5]} 38...
Rd3+ {[%clk 0:00:07.8]} 39. Kc2 {[%clk 0:01:22]} 39... d4 {[%clk 0:00:03.5]} 40.
Rb8+ {[%clk 0:01:21.2]} 40... Kg7 {[%clk 0:00:03.9]} 41. Rc8 {[%clk 0:01:17.6]}
41... Rc3+ {[%clk 0:00:04.8]} 42. Kd2 {[%clk 0:01:16.6]} 42... a3 {[%clk
0:00:05.6]} 43. e6 {[%clk 0:01:13.7]} 43... Bxe6 {[%clk 0:00:02.8]} 44. Rxc3
{[%clk 0:01:14.1]} 44... dxc3+ {[%clk 0:00:03.7]} 45. Kc2 {[%clk 0:01:15]} 45...
a2 {[%clk 0:00:04.4]} 46. Rf1 {[%clk 0:01:11.9]} 46... h6 {[%clk 0:00:02.6]} 47.
Kxc3 {[%clk 0:01:11.1]} 47... hxg5 {[%clk 0:00:03]} 48. hxg5 {[%clk 0:01:12]}
48... Kf8 {[%clk 0:00:03.7]} 49. Kb2 {[%clk 0:01:11.1]} 49... Ke7 {[%clk
0:00:04.6]} 50. Rd1 {[%clk 0:01:09.8]} 50... f6 {[%clk 0:00:04.6]} 51. gxf6+
{[%clk 0:01:04.2]} 51... Kxf6 {[%clk 0:00:05.5]} 52. Re1 {[%clk 0:01:04.8]}
52... g5 {[%clk 0:00:05.5]} 53. Rf1+ {[%clk 0:01:05.4]} 53... Kg6 {[%clk
0:00:05.6]} 54. Re1 {[%clk 0:01:04.2]} 54... Bd5 {[%clk 0:00:05.1]} 55. Rd1
{[%clk 0:01:04.7]} 55... Be6 {[%clk 0:00:04.7]} 56. Re1 {[%clk 0:01:05.3]} 56...
Bf7 {[%clk 0:00:05.3]} 57. Rg1 {[%clk 0:01:02.6]} 57... Kf6 {[%clk 0:00:04.8]}
58. Rf1+ {[%clk 0:01:03.1]} 58... Kg7 {[%clk 0:00:05.5]} 59. Rg1 {[%clk
0:01:03]} 59... Kg6 {[%clk 0:00:06.2]} 60. Ka1 {[%clk 0:01:01.7]} 60... Be6
{[%clk 0:00:05.9]} 61. Re1 {[%clk 0:01:00.4]} 61... Kf6 {[%clk 0:00:06.6]} 62.
Rf1+ {[%clk 0:01:00.3]} 62... Ke7 {[%clk 0:00:07.3]} 63. Rg1 {[%clk 0:01:00.2]}
63... g4 {[%clk 0:00:08.1]} 64. Rxg4 {[%clk 0:01:00.4]} 64... Bxg4 {[%clk
0:00:09]} 65. Kxa2 {[%clk 0:01:01.2]} 1/2-1/2

[Event "Late-Titled-Tuesday-Blitz-October-10-2023"]
[Site "Chess.com"]
[Date "2023.10.10"]
[Round "6"]
[White "BulteniBo"]
[Black "BardArtem"]
[Result "1-0"]
[WhiteElo "2544"]
[BlackElo "2770"]
[TimeControl "180+1"]
[EndTime "15:02:40 PDT"]
[Termination "BulteniBo won by resignation"]

1. e4 {[%clk 0:03:00.2]} 1... e5 {[%clk 0:02:59.4]} 2. Nf3 {[%clk 0:02:59.7]}
2... Nc6 {[%clk 0:02:58.7]} 3. Bb5 {[%clk 0:02:59.5]} 3... Nge7 {[%clk
0:02:58.2]} 4. c3 {[%clk 0:02:57.6]} 4... d5 {[%clk 0:02:53]} 5. Nxe5 {[%clk
0:02:46.4]} 5... dxe4 {[%clk 0:02:52.1]} 6. O-O {[%clk 0:02:43.7]} 6... Qd5
{[%clk 0:02:46]} 7. Bxc6+ {[%clk 0:02:40.9]} 7... Nxc6 {[%clk 0:02:44.8]} 8.
Nxc6 {[%clk 0:02:40.6]} 8... Qxc6 {[%clk 0:02:45.7]} 9. Re1 {[%clk 0:02:40]}
9... Be6 {[%clk 0:02:39]} 10. Qc2 {[%clk 0:02:34.8]} 10... O-O-O {[%clk
0:02:33.6]} 11. Qxe4 {[%clk 0:02:28]} 11... Bd5 {[%clk 0:02:24.1]} 12. Qg4+
{[%clk 0:02:24.7]} 12... Kb8 {[%clk 0:02:24.1]} 13. d4 {[%clk 0:02:10.5]} 13...
h5 {[%clk 0:02:22.9]} 14. Qh3 {[%clk 0:02:07.9]} 14... Bd6 {[%clk 0:02:14.5]}
15. Na3 {[%clk 0:01:35.9]} 15... g5 {[%clk 0:02:10.5]} 16. c4 {[%clk 0:01:33]}
16... Be6 {[%clk 0:01:28.6]} 17. d5 {[%clk 0:01:20.3]} 17... Bxh3 {[%clk
0:01:27.5]} 18. dxc6 {[%clk 0:01:20]} 18... Be6 {[%clk 0:01:24.9]} 19. Bxg5
{[%clk 0:01:13.2]} 19... Rdg8 {[%clk 0:01:23.9]} 20. h4 {[%clk 0:01:08.2]} 20...
bxc6 {[%clk 0:01:19.3]} 21. Re3 {[%clk 0:01:01.7]} 21... Rg6 {[%clk 0:01:10.4]}
22. Rae1 {[%clk 0:00:45.1]} 22... Rhg8 {[%clk 0:00:56.5]} 23. g3 {[%clk
0:00:44.9]} 23... Kc8 {[%clk 0:00:50.1]} 24. Rf3 {[%clk 0:00:39.7]} 24... Bb4
{[%clk 0:00:20.9]} 25. Rc1 {[%clk 0:00:34.5]} 25... a5 {[%clk 0:00:15.1]} 26.
Nc2 {[%clk 0:00:31.5]} 26... Bc5 {[%clk 0:00:14.1]} 27. Be3 {[%clk 0:00:31.3]}
27... Bd6 {[%clk 0:00:13.1]} 28. Nd4 {[%clk 0:00:30.9]} 28... Bd7 {[%clk
0:00:08.2]} 29. c5 {[%clk 0:00:31]} 29... Be5 {[%clk 0:00:08]} 30. Rxf7 {[%clk
0:00:29]} 30... Bxg3 {[%clk 0:00:08.4]} 31. fxg3 {[%clk 0:00:25.9]} 31... Rxg3+
{[%clk 0:00:09.3]} 32. Kf2 {[%clk 0:00:26.2]} 32... Rg2+ {[%clk 0:00:09]} 33.
Kf3 {[%clk 0:00:23.7]} 33... R2g3+ {[%clk 0:00:08.9]} 34. Ke2 {[%clk 0:00:20.4]}
34... Re8 {[%clk 0:00:09.1]} 35. Rc3 {[%clk 0:00:20.3]} 35... Bg4+ {[%clk
0:00:05.9]} 36. Kf2 {[%clk 0:00:20.3]} 36... Rh3 {[%clk 0:00:05.4]} 37. Nxc6
{[%clk 0:00:17.7]} 37... Rh2+ {[%clk 0:00:03.1]} 38. Kg3 {[%clk 0:00:17.9]}
38... Rh3+ {[%clk 0:00:03.7]} 39. Kg2 {[%clk 0:00:18]} 39... Rhxe3 {[%clk
0:00:03.5]} 40. Rxe3 {[%clk 0:00:16]} 40... Rxe3 {[%clk 0:00:04.4]} 41. Nxa5
{[%clk 0:00:14.9]} 41... Re2+ {[%clk 0:00:04.8]} 42. Rf2 {[%clk 0:00:14.3]}
42... Rxb2 {[%clk 0:00:05.7]} 43. Rxb2 {[%clk 0:00:13.9]} 1-0

[Event "Late-Titled-Tuesday-Blitz-October-10-2023"]
[Site "Chess.com"]
[Date "2023.10.10"]
[Round "6"]
[White "koncheto"]
[Black "Freefresh"]
[Result "1-0"]
[WhiteElo "2509"]
[BlackElo "2724"]
[TimeControl "180+1"]
[EndTime "15:02:43 PDT"]
[Termination "koncheto won on time"]

1. e4 {[%clk 0:03:00.9]} 1... c5 {[%clk 0:02:55]} 2. Nf3 {[%clk 0:03:01.2]} 2...
h5 {[%clk 0:02:47.4]} 3. d4 {[%clk 0:02:51]} 3... cxd4 {[%clk 0:02:45.1]} 4.
Nxd4 {[%clk 0:02:51.9]} 4... Nc6 {[%clk 0:02:37.9]} 5. c4 {[%clk 0:02:49.3]}
5... Nf6 {[%clk 0:02:31.2]} 6. Nc3 {[%clk 0:02:48.5]} 6... e6 {[%clk 0:02:24.1]}
7. Nxc6 {[%clk 0:02:43.6]} 7... bxc6 {[%clk 0:02:23.1]} 8. e5 {[%clk 0:02:43.5]}
8... Ng4 {[%clk 0:02:22.8]} 9. Qd4 {[%clk 0:02:32.1]} 9... Qb6 {[%clk
0:02:08.6]} 10. Qxb6 {[%clk 0:02:19.7]} 10... axb6 {[%clk 0:02:09.5]} 11. Bf4
{[%clk 0:02:18]} 11... Bc5 {[%clk 0:01:58.8]} 12. Ne4 {[%clk 0:02:15.2]} 12...
Bd4 {[%clk 0:01:58.8]} 13. h3 {[%clk 0:01:39.8]} 13... Nxe5 {[%clk 0:01:44.4]}
14. O-O-O {[%clk 0:01:38.8]} 14... Ng6 {[%clk 0:00:38.3]} 15. Rxd4 {[%clk
0:01:36.8]} 15... c5 {[%clk 0:00:20]} 16. Nd6+ {[%clk 0:01:21.7]} 16... Kf8
{[%clk 0:00:19.6]} 17. Nxc8 {[%clk 0:01:12.7]} 17... cxd4 {[%clk 0:00:16.6]} 18.
Bd6+ {[%clk 0:01:11.6]} 18... Kg8 {[%clk 0:00:16]} 19. Nxb6 {[%clk 0:01:10.7]}
19... Rxa2 {[%clk 0:00:16.4]} 20. Bd3 {[%clk 0:01:07.7]} 20... Ra1+ {[%clk
0:00:15.6]} 21. Bb1 {[%clk 0:01:07.7]} 21... f5 {[%clk 0:00:14.2]} 22. Rd1
{[%clk 0:00:59]} 22... Kh7 {[%clk 0:00:12.8]} 23. b4 {[%clk 0:00:49.1]} 23... e5
{[%clk 0:00:11.9]} 24. Kb2 {[%clk 0:00:39]} 24... Ra6 {[%clk 0:00:11.4]} 25. c5
{[%clk 0:00:33.8]} 25... e4 {[%clk 0:00:10.8]} 26. g4 {[%clk 0:00:21]} 26...
hxg4 {[%clk 0:00:08.1]} 27. hxg4 {[%clk 0:00:21.3]} 27... d3 {[%clk 0:00:08.1]}
28. gxf5 {[%clk 0:00:18.1]} 28... Nh4 {[%clk 0:00:03.9]} 29. Rh1 {[%clk
0:00:16]} 29... Kg8 {[%clk 0:00:04.5]} 30. Ba2+ {[%clk 0:00:15.4]} 30... Rxa2+
{[%clk 0:00:05]} 31. Kxa2 {[%clk 0:00:16.3]} 31... Nxf5 {[%clk 0:00:05]} 32.
Rxh8+ {[%clk 0:00:15.2]} 32... Kxh8 {[%clk 0:00:05.9]} 33. Bf4 {[%clk
0:00:15.7]} 33... Nd4 {[%clk 0:00:05.3]} 34. Kb2 {[%clk 0:00:13.8]} 34... Ne2
{[%clk 0:00:05.1]} 35. Be3 {[%clk 0:00:11.3]} 35... Ng1 {[%clk 0:00:03]} 36. b5
{[%clk 0:00:11.1]} 36... Nf3 {[%clk 0:00:03.9]} 37. c6 {[%clk 0:00:10.1]} 37...
dxc6 {[%clk 0:00:04]} 38. bxc6 {[%clk 0:00:11]} 38... d2 {[%clk 0:00:04.2]} 39.
Bxd2 {[%clk 0:00:10.6]} 39... Nxd2 {[%clk 0:00:05.1]} 40. c7 {[%clk 0:00:11]}
40... Nc4+ {[%clk 0:00:05.9]} 41. Nxc4 {[%clk 0:00:11.1]} 1-0

[Event "Late-Titled-Tuesday-Blitz-October-10-2023"]
[Site "Chess.com"]
[Date "2023.10.10"]
[Round "6"]
[White "StarkyNZ"]
[Black "FMJoseHerrera"]
[Result "0-1"]
[WhiteElo "2357"]
[BlackElo "2763"]
[TimeControl "180+1"]
[EndTime "15:02:46 PDT"]
[Termination "FMJoseHerrera won on time"]

1. Nf3 {[%clk 0:03:00.9]} 1... Nf6 {[%clk 0:02:59.7]} 2. c4 {[%clk 0:03:00.1]}
2... g6 {[%clk 0:03:00.3]} 3. d4 {[%clk 0:02:59.4]} 3... Bg7 {[%clk 0:03:01.2]}
4. Nc3 {[%clk 0:02:59.2]} 4... c5 {[%clk 0:03:01.8]} 5. d5 {[%clk 0:02:59.2]}
5... O-O {[%clk 0:03:02.1]} 6. e4 {[%clk 0:02:53.8]} 6... b5 {[%clk 0:03:02.7]}
7. cxb5 {[%clk 0:02:22.5]} 7... a6 {[%clk 0:03:02.7]} 8. e5 {[%clk 0:02:19.8]}
8... Ne8 {[%clk 0:02:58.4]} 9. h4 {[%clk 0:02:09.3]} 9... d6 {[%clk 0:02:57.5]}
10. h5 {[%clk 0:02:04.5]} 10... dxe5 {[%clk 0:02:57.2]} 11. hxg6 {[%clk
0:02:02.7]} 11... fxg6 {[%clk 0:02:58.1]} 12. d6 {[%clk 0:01:40.8]} 12... Qxd6
{[%clk 0:02:15.3]} 13. Qd5+ {[%clk 0:01:40]} 13... Qxd5 {[%clk 0:02:09.1]} 14.
Nxd5 {[%clk 0:01:40.9]} 14... Ra7 {[%clk 0:02:07.9]} 15. b6 {[%clk 0:01:33.9]}
15... Rd7 {[%clk 0:02:06.9]} 16. Bc4 {[%clk 0:01:30.6]} 16... e6 {[%clk
0:02:06.9]} 17. Nc3 {[%clk 0:01:25.1]} 17... Rb7 {[%clk 0:02:04]} 18. Ne4 {[%clk
0:01:21.7]} 18... Rxb6 {[%clk 0:02:01.6]} 19. Be3 {[%clk 0:01:18.6]} 19... Nd7
{[%clk 0:01:02.5]} 20. Nfg5 {[%clk 0:01:13]} 20... Nc7 {[%clk 0:00:49.2]} 21.
Nxh7 {[%clk 0:01:10]} 21... Rf5 {[%clk 0:00:44]} 22. g4 {[%clk 0:01:05.2]} 22...
Rf3 {[%clk 0:00:43.6]} 23. O-O-O {[%clk 0:00:55.5]} 23... Rb4 {[%clk 0:00:39.7]}
24. b3 {[%clk 0:00:51.3]} 24... Nd5 {[%clk 0:00:38.4]} 25. Nhg5 {[%clk
0:00:43.4]} 25... Rxe3 {[%clk 0:00:19.2]} 26. fxe3 {[%clk 0:00:40.8]} 26... N7b6
{[%clk 0:00:19.6]} 27. Nd6 {[%clk 0:00:26.1]} 27... Bd7 {[%clk 0:00:19]} 28. e4
{[%clk 0:00:24.1]} 28... Nc3 {[%clk 0:00:17.5]} 29. Rd2 {[%clk 0:00:21.8]} 29...
Nxa2+ {[%clk 0:00:11.4]} 30. Rxa2 {[%clk 0:00:21.2]} 30... Nxc4 {[%clk
0:00:06.7]} 31. bxc4 {[%clk 0:00:19.4]} 31... Bf6 {[%clk 0:00:06.1]} 32. Nf3
{[%clk 0:00:19]} 32... Be7 {[%clk 0:00:04.9]} 33. Nxe5 {[%clk 0:00:16.9]} 33...
Ba4 {[%clk 0:00:01.9]} 34. Rh6 {[%clk 0:00:05.7]} 34... Bg5+ {[%clk 0:00:01.8]}
35. Rd2 {[%clk 0:00:01.1]} 35... Bxh6 {[%clk 0:00:02.2]} 0-1

[Event "Late-Titled-Tuesday-Blitz-October-10-2023"]
[Site "Chess.com"]
[Date "2023.10.10"]
[Round "6"]
[White "FairChess_on_YouTube"]
[Black "iturrizaga"]
[Result "0-1"]
[WhiteElo "3091"]
[BlackElo "3017"]
[TimeControl "180+1"]
[EndTime "15:02:57 PDT"]
[Termination "iturrizaga won by resignation"]

1. Nf3 {[%clk 0:03:00.9]} 1... c5 {[%clk 0:03:00.3]} 2. c4 {[%clk 0:03:00.2]}
2... Nc6 {[%clk 0:03:00.7]} 3. Nc3 {[%clk 0:02:59.9]} 3... Nf6 {[%clk
0:03:00.4]} 4. g3 {[%clk 0:02:59.9]} 4... e5 {[%clk 0:02:50]} 5. Bg2 {[%clk
0:02:59.6]} 5... g6 {[%clk 0:02:49.3]} 6. O-O {[%clk 0:02:58.2]} 6... Bg7 {[%clk
0:02:49.6]} 7. d3 {[%clk 0:02:56.3]} 7... O-O {[%clk 0:02:49.2]} 8. Bg5 {[%clk
0:02:55.9]} 8... d6 {[%clk 0:02:48.9]} 9. Nd2 {[%clk 0:02:55.4]} 9... h6 {[%clk
0:02:48.3]} 10. Bxf6 {[%clk 0:02:55.2]} 10... Bxf6 {[%clk 0:02:47.2]} 11. Nde4
{[%clk 0:02:54.5]} 11... Bg7 {[%clk 0:02:30.4]} 12. Nb5 {[%clk 0:02:51.1]} 12...
a6 {[%clk 0:02:28.5]} 13. Nbc3 {[%clk 0:02:40.4]} 13... Be6 {[%clk 0:02:25.1]}
14. a3 {[%clk 0:02:39.8]} 14... Rb8 {[%clk 0:02:23.6]} 15. Rb1 {[%clk
0:02:33.5]} 15... f5 {[%clk 0:02:07.1]} 16. Nd2 {[%clk 0:02:32.9]} 16... Kh7
{[%clk 0:02:07.6]} 17. Bd5 {[%clk 0:02:30]} 17... Bd7 {[%clk 0:02:04.3]} 18. e3
{[%clk 0:02:25.2]} 18... b5 {[%clk 0:02:01]} 19. Bg2 {[%clk 0:02:21.9]} 19...
Ne7 {[%clk 0:01:40.4]} 20. Qc2 {[%clk 0:02:19.5]} 20... Be6 {[%clk 0:01:36.2]}
21. b3 {[%clk 0:02:01.5]} 21... Qd7 {[%clk 0:01:36.8]} 22. a4 {[%clk 0:02:00.7]}
22... b4 {[%clk 0:01:35.3]} 23. Nd5 {[%clk 0:02:00.9]} 23... a5 {[%clk
0:01:35.9]} 24. Nxe7 {[%clk 0:01:52.4]} 24... Qxe7 {[%clk 0:01:36]} 25. Rbe1
{[%clk 0:01:53.1]} 25... f4 {[%clk 0:01:24.2]} 26. exf4 {[%clk 0:01:42.1]} 26...
exf4 {[%clk 0:01:24.5]} 27. Bd5 {[%clk 0:01:33.7]} 27... Be5 {[%clk 0:01:24.6]}
28. Nf3 {[%clk 0:01:31.2]} 28... Bh3 {[%clk 0:01:23.2]} 29. d4 {[%clk
0:01:07.8]} 29... cxd4 {[%clk 0:01:17.5]} 30. Nh4 {[%clk 0:01:07.6]} 30... Qf6
{[%clk 0:01:04.9]} 31. Bg2 {[%clk 0:00:53.1]} 31... Bxg2 {[%clk 0:00:57.7]} 32.
Kxg2 {[%clk 0:00:52.5]} 32... f3+ {[%clk 0:00:40.5]} 33. Kh1 {[%clk 0:00:52.8]}
33... Kg7 {[%clk 0:00:41.2]} 34. c5 {[%clk 0:00:41.8]} 34... Rbc8 {[%clk
0:00:41]} 35. Qe4 {[%clk 0:00:38.1]} 35... Rxc5 {[%clk 0:00:30.6]} 36. Rg1
{[%clk 0:00:33.4]} 36... g5 {[%clk 0:00:29.4]} 37. Rd1 {[%clk 0:00:33.7]} 37...
gxh4 {[%clk 0:00:23.1]} 38. gxh4+ {[%clk 0:00:34.6]} 38... Kh8 {[%clk
0:00:23.6]} 39. Qg4 {[%clk 0:00:27.3]} 39... Rc7 {[%clk 0:00:20.7]} 40. Qh5
{[%clk 0:00:22.3]} 40... Rg7 {[%clk 0:00:14.2]} 41. Rxg7 {[%clk 0:00:20.5]}
41... Kxg7 {[%clk 0:00:15.1]} 42. Rc1 {[%clk 0:00:20.7]} 42... Rf7 {[%clk
0:00:13.5]} 43. Rc8 {[%clk 0:00:20.1]} 43... Kh7 {[%clk 0:00:10.8]} 44. Re8
{[%clk 0:00:05]} 44... Qg6 {[%clk 0:00:08.2]} 0-1

[Event "Late-Titled-Tuesday-Blitz-October-10-2023"]
[Site "Chess.com"]
[Date "2023.10.10"]
[Round "6"]
[White "Jarming"]
[Black "dretch"]
[Result "0-1"]
[WhiteElo "2754"]
[BlackElo "2849"]
[TimeControl "180+1"]
[EndTime "15:02:57 PDT"]
[Termination "dretch won on time"]

1. c4 {[%clk 0:03:00.9]} 1... c6 {[%clk 0:02:59.1]} 2. Nf3 {[%clk 0:02:59.8]}
2... d5 {[%clk 0:02:58.9]} 3. e3 {[%clk 0:03:00.5]} 3... Bg4 {[%clk 0:02:57.7]}
4. b3 {[%clk 0:03:00.7]} 4... e5 {[%clk 0:02:57]} 5. Bb2 {[%clk 0:02:54.3]} 5...
e4 {[%clk 0:02:56.7]} 6. h3 {[%clk 0:02:54.8]} 6... Bc8 {[%clk 0:02:48.6]} 7.
Nd4 {[%clk 0:02:54.4]} 7... Nf6 {[%clk 0:02:38.1]} 8. Be2 {[%clk 0:02:51.6]}
8... c5 {[%clk 0:02:23]} 9. Nc2 {[%clk 0:02:51.1]} 9... Bd6 {[%clk 0:02:15.1]}
10. cxd5 {[%clk 0:02:50.5]} 10... O-O {[%clk 0:02:13.6]} 11. Nc3 {[%clk
0:02:42.8]} 11... Be5 {[%clk 0:02:12.8]} 12. Rb1 {[%clk 0:02:35.2]} 12... Re8
{[%clk 0:02:03.8]} 13. d4 {[%clk 0:02:11.6]} 13... cxd4 {[%clk 0:01:57.7]} 14.
Nxd4 {[%clk 0:02:11.5]} 14... Nxd5 {[%clk 0:01:46.6]} 15. Nxd5 {[%clk
0:01:57.9]} 15... Qxd5 {[%clk 0:01:45.9]} 16. O-O {[%clk 0:01:58.4]} 16... Bd7
{[%clk 0:01:41]} 17. Nb5 {[%clk 0:01:55.8]} 17... Qe6 {[%clk 0:01:15.5]} 18.
Bxe5 {[%clk 0:01:38]} 18... Qxe5 {[%clk 0:01:12.7]} 19. Nd6 {[%clk 0:01:38.2]}
19... Re7 {[%clk 0:00:55.9]} 20. Rc1 {[%clk 0:01:28.9]} 20... Nc6 {[%clk
0:00:46.7]} 21. Nxb7 {[%clk 0:01:15.2]} 21... Qg5 {[%clk 0:00:45.3]} 22. Rc5
{[%clk 0:01:14.3]} 22... Ne5 {[%clk 0:00:40.6]} 23. Kh2 {[%clk 0:01:02.4]} 23...
Bc6 {[%clk 0:00:19]} 24. f4 {[%clk 0:00:40.5]} 24... exf3 {[%clk 0:00:17.8]} 25.
Bxf3 {[%clk 0:00:41]} 25... Nxf3+ {[%clk 0:00:13.8]} 26. Rxf3 {[%clk 0:00:38.3]}
26... Bxf3 {[%clk 0:00:12.4]} 27. Qxf3 {[%clk 0:00:39.2]} 27... Qg6 {[%clk
0:00:10]} 28. Nd6 {[%clk 0:00:31.8]} 28... Rf8 {[%clk 0:00:10.4]} 29. Nf5 {[%clk
0:00:32]} 29... Re6 {[%clk 0:00:10.2]} 30. Rc4 {[%clk 0:00:25.1]} 30... Qf6
{[%clk 0:00:09.9]} 31. Rg4 {[%clk 0:00:24.8]} 31... g6 {[%clk 0:00:09.9]} 32. e4
{[%clk 0:00:20.1]} 32... Qe5+ {[%clk 0:00:09.6]} 33. Kh1 {[%clk 0:00:18.9]}
33... Kh8 {[%clk 0:00:10.1]} 34. Ne3 {[%clk 0:00:15.9]} 34... Re7 {[%clk
0:00:09.8]} 35. Nc4 {[%clk 0:00:16]} 35... Qa1+ {[%clk 0:00:09.4]} 36. Kh2
{[%clk 0:00:16.6]} 36... Qd4 {[%clk 0:00:08.7]} 37. e5 {[%clk 0:00:15.3]} 37...
Qd8 {[%clk 0:00:09]} 38. Rh4 {[%clk 0:00:14.9]} 38... Re6 {[%clk 0:00:08.6]} 39.
Rf4 {[%clk 0:00:13.4]} 39... f6 {[%clk 0:00:07.1]} 40. a4 {[%clk 0:00:11.1]}
40... Qe7 {[%clk 0:00:07.1]} 41. Kh1 {[%clk 0:00:08.9]} 41... Kg7 {[%clk
0:00:07.4]} 42. exf6+ {[%clk 0:00:08.2]} 42... Rfxf6 {[%clk 0:00:07.6]} 43. Qc3
{[%clk 0:00:08.8]} 43... Qc7 {[%clk 0:00:07.3]} 44. Qd4 {[%clk 0:00:07.3]} 44...
Qxf4 {[%clk 0:00:07.2]} 0-1